[Event "Titled Tuesday Blitz February 14 Early 2023"]
[White "Dragnev, Valentin"]
[Black "Bodnaruk, Anastasia"]
[WhiteFideId "1634852"]
[BlackFideId "4181751"]
[WhiteElo "2593"]
[BlackElo "2350"]
[Result "1/2-1/2"]
[Round "09"]
[TimeControl "180+2"]
[Date "2023.02.14"]
[WhiteClock "0:00:03"]
[BlackClock "0:00:05"]

1. e4 {[%clk 0:03:00]}  c5 {[%clk 0:02:59]} 2. Nf3 {[%clk 0:03:01]}  d6 {[%clk 0:03:00]} 3. Nc3 {[%clk 0:02:59]}  a6 {[%clk 0:02:53]} 4. g3 {[%clk 0:02:59]}  e5 {[%clk 0:02:48]} 5. Bg2 {[%clk 0:02:57]}  g6 {[%clk 0:02:48]} 6. O-O {[%clk 0:02:57]}  Bg7 {[%clk 0:02:48]} 7. Nd5 {[%clk 0:02:57]}  Ne7 {[%clk 0:02:47]} 8. d3 {[%clk 0:02:57]}  O-O {[%clk 0:02:44]} 9. Rb1 {[%clk 0:02:57]}  Nbc6 {[%clk 0:02:43]} 10. Nd2 {[%clk 0:02:49]}  f5 {[%clk 0:02:35]} 11. b4 {[%clk 0:02:47]}  cxb4 {[%clk 0:02:27]} 12. Nxb4 {[%clk 0:02:47]}  Nxb4 {[%clk 0:02:27]} 13. Rxb4 {[%clk 0:02:48]}  f4 {[%clk 0:02:26]} 14. Nc4 {[%clk 0:02:39]}  b5 {[%clk 0:02:16]} 15. Nd2 {[%clk 0:02:33]}  Be6 {[%clk 0:02:12]} 16. c4 {[%clk 0:02:33]}  Nc6 {[%clk 0:02:01]} 17. Rb1 {[%clk 0:02:33]}  Nd4 {[%clk 0:02:01]} 18. Bb2 {[%clk 0:02:24]}  Qd7 {[%clk 0:01:52]} 19. Bxd4 {[%clk 0:02:24]}  exd4 {[%clk 0:01:51]} 20. Re1 {[%clk 0:02:20]}  Rab8 {[%clk 0:01:48]} 21. Qc2 {[%clk 0:01:58]}  Kh8 {[%clk 0:01:26]} 22. Rec1 {[%clk 0:01:55]}  Rbc8 {[%clk 0:01:17]} 23. a4 {[%clk 0:01:50]}  Qf7 {[%clk 0:01:12]} 24. axb5 {[%clk 0:01:46]}  axb5 {[%clk 0:01:08]} 25. Rxb5 {[%clk 0:01:46]}  fxg3 {[%clk 0:01:07]} 26. fxg3 {[%clk 0:01:47]}  Qf2+ {[%clk 0:01:04]} 27. Kh1 {[%clk 0:01:47]}  Bh6 {[%clk 0:01:04]} 28. Rb2 {[%clk 0:01:45]}  Bg4 {[%clk 0:00:52]} 29. Nf1 {[%clk 0:01:33]}  Qf6 {[%clk 0:00:38]} 30. Rcb1 {[%clk 0:01:33]}  Bf3 {[%clk 0:00:34]} 31. h3 {[%clk 0:01:27]}  Qe5 {[%clk 0:00:33]} 32. Kh2 {[%clk 0:01:25]}  Be3 {[%clk 0:00:26]} 33. Rb5 {[%clk 0:01:22]}  Qe6 {[%clk 0:00:25]} 34. Nxe3 {[%clk 0:00:36]}  dxe3 {[%clk 0:00:25]} 35. Rg1 {[%clk 0:00:36]}  Rf6 {[%clk 0:00:21]} 36. Qc3 {[%clk 0:00:33]}  Kg8 {[%clk 0:00:19]} 37. Rb2 {[%clk 0:00:32]}  Rcf8 {[%clk 0:00:18]} 38. Rb7 {[%clk 0:00:28]}  Qe5 {[%clk 0:00:11]} 39. Qxe5 {[%clk 0:00:18]}  dxe5 {[%clk 0:00:11]} 40. Rb2 {[%clk 0:00:19]}  Rd8 {[%clk 0:00:10]} 41. Bxf3 {[%clk 0:00:16]}  Rxf3 {[%clk 0:00:10]} 42. Kg2 {[%clk 0:00:17]}  Rf6 {[%clk 0:00:09]} 43. Rd1 {[%clk 0:00:11]}  Rfd6 {[%clk 0:00:08]} 44. Kf3 {[%clk 0:00:10]}  Rxd3 {[%clk 0:00:09]} 45. Rxd3 {[%clk 0:00:10]}  Rxd3 {[%clk 0:00:09]} 46. Rc2 {[%clk 0:00:10]}  Kf7 {[%clk 0:00:04]} 47. c5 {[%clk 0:00:07]}  Ke7 {[%clk 0:00:04]} 48. c6 {[%clk 0:00:07]}  Kd8 {[%clk 0:00:04]} 49. Ke2 {[%clk 0:00:07]}  Ra3 {[%clk 0:00:03]} 50. Rc5 {[%clk 0:00:08]}  Kc7 {[%clk 0:00:03]} 51. h4 {[%clk 0:00:07]}  Rb3 {[%clk 0:00:02]} 52. Rc2 {[%clk 0:00:05]}  Ra3 {[%clk 0:00:02]} 53. Rc5 {[%clk 0:00:05]}  Rb3 {[%clk 0:00:02]} 54. Rxe5 {[%clk 0:00:06]}  Kxc6 {[%clk 0:00:02]} 55. Re7 {[%clk 0:00:06]}  h5 {[%clk 0:00:01]} 56. Re6+ {[%clk 0:00:05]}  Kc5 {[%clk 0:00:02]} 57. Rxg6 {[%clk 0:00:05]}  Kd4 {[%clk 0:00:02]} 58. Rd6+ {[%clk 0:00:04]}  Kxe4 {[%clk 0:00:03]} 59. Re6+ {[%clk 0:00:04]}  Kd4 {[%clk 0:00:03]} 60. Rd6+ {[%clk 0:00:04]}  Ke4 {[%clk 0:00:04]} 61. Re6+ {[%clk 0:00:05]}  Kd4 {[%clk 0:00:04]} 62. Rd6+ {[%clk 0:00:03]}  Ke4 {[%clk 0:00:05]} 1/2-1/2


[Site "https://www.chess.com"]

[Event "Titled Tuesday Blitz February 14 Early 2023"]
[White "Costachi, Mihnea"]
[Black "Shapiro, Viktor"]
[WhiteFideId "1217518"]
[BlackFideId "4175700"]
[WhiteElo "2476"]
[BlackElo "2192"]
[Result "1-0"]
[Round "09"]
[TimeControl "180+2"]
[Date "2023.02.14"]
[WhiteClock "0:00:11"]
[BlackClock "0:00:02"]

1. Nc3 {[%clk 0:02:56]}  Nf6 {[%clk 0:02:58]} 2. e4 {[%clk 0:02:55]}  d5 {[%clk 0:02:58]} 3. e5 {[%clk 0:02:54]}  Nfd7 {[%clk 0:02:59]} 4. d4 {[%clk 0:02:53]}  e6 {[%clk 0:02:59]} 5. f4 {[%clk 0:02:54]}  c5 {[%clk 0:02:59]} 6. Nf3 {[%clk 0:02:55]}  Nc6 {[%clk 0:03:00]} 7. Be3 {[%clk 0:02:55]}  a6 {[%clk 0:03:00]} 8. Be2 {[%clk 0:02:54]}  b5 {[%clk 0:03:00]} 9. Qd2 {[%clk 0:02:55]}  Qb6 {[%clk 0:03:01]} 10. O-O {[%clk 0:02:54]}  cxd4 {[%clk 0:02:56]} 11. Nxd4 {[%clk 0:02:54]}  Bc5 {[%clk 0:02:57]} 12. Rad1 {[%clk 0:02:53]}  Bb7 {[%clk 0:02:54]} 13. Kh1 {[%clk 0:02:51]}  Nxd4 {[%clk 0:02:50]} 14. Bxd4 {[%clk 0:02:51]}  Bxd4 {[%clk 0:02:50]} 15. Qxd4 {[%clk 0:02:52]}  Qxd4 {[%clk 0:02:51]} 16. Rxd4 {[%clk 0:02:53]}  g5 {[%clk 0:02:39]} 17. Bh5 {[%clk 0:02:46]}  Ke7 {[%clk 0:02:28]} 18. g3 {[%clk 0:02:43]}  gxf4 {[%clk 0:02:27]} 19. gxf4 {[%clk 0:02:43]}  f6 {[%clk 0:02:25]} 20. exf6+ {[%clk 0:02:40]}  Nxf6 {[%clk 0:02:25]} 21. Bf3 {[%clk 0:02:41]}  Rac8 {[%clk 0:02:24]} 22. Re1 {[%clk 0:02:38]}  Kd6 {[%clk 0:02:20]} 23. Re2 {[%clk 0:02:25]}  Rhe8 {[%clk 0:02:15]} 24. a4 {[%clk 0:02:23]}  Rc4 {[%clk 0:02:11]} 25. Rxc4 {[%clk 0:02:21]}  bxc4 {[%clk 0:02:11]} 26. Kg2 {[%clk 0:02:18]}  Bc6 {[%clk 0:02:09]} 27. Kf2 {[%clk 0:02:17]}  Rb8 {[%clk 0:02:07]} 28. Nd1 {[%clk 0:02:08]}  Bxa4 {[%clk 0:02:05]} 29. Ke3 {[%clk 0:02:01]}  Kc5 {[%clk 0:02:00]} 30. Kd2 {[%clk 0:01:59]}  Bd7 {[%clk 0:01:56]} 31. c3 {[%clk 0:01:53]}  Kd6 {[%clk 0:01:49]} 32. Kc1 {[%clk 0:01:52]}  Rg8 {[%clk 0:01:45]} 33. Ne3 {[%clk 0:01:52]}  Rg1+ {[%clk 0:01:42]} 34. Kd2 {[%clk 0:01:53]}  Rb1 {[%clk 0:01:40]} 35. Kc2 {[%clk 0:01:52]}  Rg1 {[%clk 0:01:39]} 36. Kd2 {[%clk 0:01:52]}  Ba4 {[%clk 0:01:35]} 37. Re1 {[%clk 0:01:41]}  Rxe1 {[%clk 0:01:30]} 38. Kxe1 {[%clk 0:01:42]}  Be8 {[%clk 0:01:21]} 39. Nc2 {[%clk 0:01:40]}  Bg6 {[%clk 0:01:20]} 40. Nd4 {[%clk 0:01:39]}  Be4 {[%clk 0:01:16]} 41. Be2 {[%clk 0:01:40]}  e5 {[%clk 0:01:10]} 42. fxe5+ {[%clk 0:01:39]}  Kxe5 {[%clk 0:01:11]} 43. b3 {[%clk 0:01:39]}  Bd3 {[%clk 0:01:03]} 44. Bxd3 {[%clk 0:01:35]}  cxd3 {[%clk 0:01:03]} 45. Kd2 {[%clk 0:01:36]}  Ke4 {[%clk 0:01:02]} 46. Ne6 {[%clk 0:01:31]}  h5 {[%clk 0:00:48]} 47. Nc5+ {[%clk 0:01:29]}  Kf3 {[%clk 0:00:48]} 48. Nxa6 {[%clk 0:01:30]}  h4 {[%clk 0:00:48]} 49. b4 {[%clk 0:01:29]}  h3 {[%clk 0:00:47]} 50. Nc5 {[%clk 0:01:25]}  Kg2 {[%clk 0:00:45]} 51. b5 {[%clk 0:01:18]}  Kxh2 {[%clk 0:00:42]} 52. b6 {[%clk 0:01:18]}  Kg2 {[%clk 0:00:36]} 53. b7 {[%clk 0:01:13]}  h2 {[%clk 0:00:36]} 54. b8=Q {[%clk 0:01:13]}  h1=Q {[%clk 0:00:35]} 55. Qf4 {[%clk 0:00:59]}  Qf1 {[%clk 0:00:20]} 56. Qg5+ {[%clk 0:00:58]}  Kh3 {[%clk 0:00:19]} 57. Qe3+ {[%clk 0:00:41]}  Kg4 {[%clk 0:00:17]} 58. Nxd3 {[%clk 0:00:42]}  Ne4+ {[%clk 0:00:17]} 59. Kc2 {[%clk 0:00:42]}  Qg2+ {[%clk 0:00:17]} 60. Kb3 {[%clk 0:00:41]}  Nd2+ {[%clk 0:00:14]} 61. Kc2 {[%clk 0:00:32]}  Nc4+ {[%clk 0:00:13]} 62. Nf2+ {[%clk 0:00:33]}  Kf5 {[%clk 0:00:12]} 63. Qd4 {[%clk 0:00:29]}  Qf3 {[%clk 0:00:09]} 64. Kb3 {[%clk 0:00:27]}  Ke6 {[%clk 0:00:08]} 65. Kb4 {[%clk 0:00:26]}  Qe2 {[%clk 0:00:07]} 66. Kc5 {[%clk 0:00:24]}  Ne3 {[%clk 0:00:06]} 67. Nd3 {[%clk 0:00:20]}  Qf3 {[%clk 0:00:02]} 68. Qe5+ {[%clk 0:00:18]}  Kf7 {[%clk 0:00:02]} 69. Qc7+ {[%clk 0:00:18]}  Kg6 {[%clk 0:00:03]} 70. Ne5+ {[%clk 0:00:18]}  Kf5 {[%clk 0:00:03]} 71. Nxf3 {[%clk 0:00:19]}  Ke4 {[%clk 0:00:03]} 72. Nd4 {[%clk 0:00:17]}  Nd1 {[%clk 0:00:03]} 73. Qg3 {[%clk 0:00:15]}  Nb2 {[%clk 0:00:02]} 74. Nb5 {[%clk 0:00:09]}  Nd3+ {[%clk 0:00:02]} 75. Qxd3+ {[%clk 0:00:10]}  Kxd3 {[%clk 0:00:02]} 76. Kxd5 {[%clk 0:00:11]} 1-0


[Site "https://www.chess.com"]

[Event "Titled Tuesday Blitz February 14 Early 2023"]
[White "Vovk, Orest"]
[Black "Matinian, Nikita"]
[WhiteFideId "14113490"]
[BlackFideId "24129100"]
[WhiteElo "2315"]
[BlackElo "2407"]
[Result "0-1"]
[Round "09"]
[TimeControl "180+2"]
[Date "2023.02.14"]
[WhiteClock "0:00:03"]
[BlackClock "0:00:14"]

1. h4 {[%clk 0:02:55]}  d5 {[%clk 0:02:48]} 2. h5 {[%clk 0:02:56]}  e5 {[%clk 0:02:47]} 3. h6 {[%clk 0:02:56]}  Nxh6 {[%clk 0:02:45]} 4. d4 {[%clk 0:02:56]}  e4 {[%clk 0:02:42]} 5. Bxh6 {[%clk 0:02:56]}  gxh6 {[%clk 0:02:42]} 6. e3 {[%clk 0:02:57]}  c5 {[%clk 0:02:37]} 7. Ne2 {[%clk 0:02:57]}  Nc6 {[%clk 0:02:37]} 8. Nbc3 {[%clk 0:02:57]}  Be6 {[%clk 0:02:35]} 9. Nf4 {[%clk 0:02:52]}  cxd4 {[%clk 0:02:31]} 10. Nxe6 {[%clk 0:02:47]}  fxe6 {[%clk 0:02:29]} 11. Qh5+ {[%clk 0:02:42]}  Kd7 {[%clk 0:02:23]} 12. exd4 {[%clk 0:02:42]}  Qg5 {[%clk 0:02:17]} 13. Qh3 {[%clk 0:02:20]}  Nxd4 {[%clk 0:02:08]} 14. Bb5+ {[%clk 0:02:17]}  Kc7 {[%clk 0:02:06]} 15. Kf1 {[%clk 0:02:12]}  Bc5 {[%clk 0:02:04]} 16. Qh2+ {[%clk 0:01:17]}  Bd6 {[%clk 0:01:45]} 17. Qxh6 {[%clk 0:01:11]}  Qxh6 {[%clk 0:01:45]} 18. Rxh6 {[%clk 0:01:12]}  Raf8 {[%clk 0:01:43]} 19. Ba4 {[%clk 0:01:01]}  a6 {[%clk 0:01:32]} 20. Ne2 {[%clk 0:00:57]}  Bc5 {[%clk 0:01:12]} 21. Nxd4 {[%clk 0:00:56]}  Bxd4 {[%clk 0:01:13]} 22. Rxe6 {[%clk 0:00:57]}  Rxf2+ {[%clk 0:01:13]} 23. Kg1 {[%clk 0:00:56]}  Rhf8 {[%clk 0:01:09]} 24. Kh1 {[%clk 0:00:33]}  e3 {[%clk 0:00:59]} 25. Rd1 {[%clk 0:00:28]}  Bxb2 {[%clk 0:00:52]} 26. Rxd5 {[%clk 0:00:22]}  e2 {[%clk 0:00:50]} 27. Rd7+ {[%clk 0:00:22]}  Kb8 {[%clk 0:00:50]} 28. Rde7 {[%clk 0:00:23]}  Bf6 {[%clk 0:00:41]} 29. Rxe2 {[%clk 0:00:17]}  Bxe7 {[%clk 0:00:40]} 30. Rxe7 {[%clk 0:00:18]}  R8f7 {[%clk 0:00:39]} 31. Re8+ {[%clk 0:00:15]}  Kc7 {[%clk 0:00:40]} 32. Rg8 {[%clk 0:00:13]}  R2f6 {[%clk 0:00:32]} 33. Bb3 {[%clk 0:00:10]}  Re7 {[%clk 0:00:31]} 34. Kh2 {[%clk 0:00:09]}  Rg6 {[%clk 0:00:31]} 35. Rf8 {[%clk 0:00:08]}  Re2 {[%clk 0:00:25]} 36. Bd5 {[%clk 0:00:08]}  Re7 {[%clk 0:00:22]} 37. c4 {[%clk 0:00:07]}  Rg5 {[%clk 0:00:20]} 38. Rf3 {[%clk 0:00:04]}  h5 {[%clk 0:00:16]} 39. a4 {[%clk 0:00:02]}  b6 {[%clk 0:00:16]} 40. Rd3 {[%clk 0:00:01]}  Rd7 {[%clk 0:00:13]} 41. Rb3 {[%clk 0:00:01]}  Rdxd5 {[%clk 0:00:12]} 42. cxd5 {[%clk 0:00:01]}  Rxd5 {[%clk 0:00:13]} 43. Rc3+ {[%clk 0:00:02]}  Kd6 {[%clk 0:00:12]} 44. Rc4 {[%clk 0:00:02]}  b5 {[%clk 0:00:12]} 45. axb5 {[%clk 0:00:03]}  axb5 {[%clk 0:00:13]} 46. Rf4 {[%clk 0:00:03]}  Kc5 {[%clk 0:00:13]} 47. Kg1 {[%clk 0:00:03]}  b4 {[%clk 0:00:14]} 48. Rf8 {[%clk 0:00:02]}  b3 {[%clk 0:00:14]} 49. Rb8 {[%clk 0:00:02]}  Kc4 {[%clk 0:00:14]} 50. Kf2 {[%clk 0:00:02]}  Rb5 {[%clk 0:00:13]} 51. Rc8+ {[%clk 0:00:02]}  Kb4 {[%clk 0:00:13]} 52. Rc1 {[%clk 0:00:02]}  b2 {[%clk 0:00:14]} 53. Rb1 {[%clk 0:00:03]}  Kc3 {[%clk 0:00:14]} 0-1


[Site "https://www.chess.com"]

[Event "Titled Tuesday Blitz February 14 Early 2023"]
[White "Melian, Juan Sebastian"]
[Black "Dehtiarov, Roman"]
[WhiteFideId "3706575"]
[BlackFideId "14186640"]
[WhiteElo "2293"]
[BlackElo "2289"]
[Result "1-0"]
[Round "09"]
[TimeControl "180+2"]
[Date "2023.02.14"]
[WhiteClock "0:00:05"]
[BlackClock "0:00:01"]

1. d4 {[%clk 0:03:00]}  d5 {[%clk 0:02:59]} 2. c4 {[%clk 0:03:01]}  e6 {[%clk 0:02:59]} 3. Nc3 {[%clk 0:03:01]}  Nf6 {[%clk 0:02:59]} 4. cxd5 {[%clk 0:03:00]}  exd5 {[%clk 0:03:00]} 5. Bg5 {[%clk 0:03:00]}  Nbd7 {[%clk 0:03:01]} 6. e3 {[%clk 0:03:01]}  Be7 {[%clk 0:02:58]} 7. Bd3 {[%clk 0:03:00]}  c6 {[%clk 0:02:57]} 8. Nf3 {[%clk 0:03:00]}  O-O {[%clk 0:02:58]} 9. O-O {[%clk 0:02:58]}  Re8 {[%clk 0:02:58]} 10. Qc2 {[%clk 0:02:59]}  h6 {[%clk 0:02:58]} 11. Bh4 {[%clk 0:02:58]}  Nf8 {[%clk 0:02:59]} 12. Rab1 {[%clk 0:02:57]}  N6d7 {[%clk 0:02:31]} 13. Bxe7 {[%clk 0:02:58]}  Qxe7 {[%clk 0:02:32]} 14. b4 {[%clk 0:02:58]}  a6 {[%clk 0:02:32]} 15. a4 {[%clk 0:02:58]}  Nf6 {[%clk 0:02:29]} 16. b5 {[%clk 0:02:57]}  axb5 {[%clk 0:02:28]} 17. axb5 {[%clk 0:02:58]}  Ne4 {[%clk 0:02:26]} 18. Ne2 {[%clk 0:02:25]}  c5 {[%clk 0:02:12]} 19. dxc5 {[%clk 0:02:20]}  Nxc5 {[%clk 0:02:13]} 20. Rfc1 {[%clk 0:02:11]}  b6 {[%clk 0:02:07]} 21. Nfd4 {[%clk 0:02:06]}  Nfe6 {[%clk 0:02:04]} 22. Nxe6 {[%clk 0:01:46]}  Bxe6 {[%clk 0:02:04]} 23. Nd4 {[%clk 0:01:47]}  Qf6 {[%clk 0:02:02]} 24. Qd1 {[%clk 0:01:22]}  Ra2 {[%clk 0:01:56]} 25. Rc2 {[%clk 0:01:21]}  Rea8 {[%clk 0:01:56]} 26. Rbc1 {[%clk 0:01:20]}  g6 {[%clk 0:01:52]} 27. Rxa2 {[%clk 0:01:15]}  Rxa2 {[%clk 0:01:53]} 28. Rc2 {[%clk 0:01:16]}  Ra8 {[%clk 0:01:49]} 29. Rc1 {[%clk 0:01:05]}  Ra2 {[%clk 0:01:47]} 30. Rc2 {[%clk 0:01:05]}  Ra8 {[%clk 0:01:48]} 31. Rc1 {[%clk 0:01:05]}  Kg7 {[%clk 0:01:48]} 32. h3 {[%clk 0:01:04]}  h5 {[%clk 0:01:49]} 33. Be2 {[%clk 0:01:03]}  Ne4 {[%clk 0:01:28]} 34. Bf3 {[%clk 0:01:03]}  Ng5 {[%clk 0:01:28]} 35. Rc6 {[%clk 0:00:58]}  Qd8 {[%clk 0:01:09]} 36. h4 {[%clk 0:00:52]}  Nxf3+ {[%clk 0:01:05]} 37. Nxf3 {[%clk 0:00:52]}  Kg8 {[%clk 0:00:28]} 38. Qd4 {[%clk 0:00:51]}  Bg4 {[%clk 0:00:22]} 39. Ng5 {[%clk 0:00:43]}  Rb8 {[%clk 0:00:17]} 40. Qf4 {[%clk 0:00:19]}  Bf5 {[%clk 0:00:15]} 41. Qe5 {[%clk 0:00:17]}  Ra8 {[%clk 0:00:09]} 42. Rd6 {[%clk 0:00:10]}  Qe8 {[%clk 0:00:05]} 43. Qxe8+ {[%clk 0:00:07]}  Rxe8 {[%clk 0:00:06]} 44. Rxd5 {[%clk 0:00:08]}  f6 {[%clk 0:00:04]} 45. Nf3 {[%clk 0:00:07]}  Kf7 {[%clk 0:00:03]} 46. Nd4 {[%clk 0:00:05]}  Be4 {[%clk 0:00:03]} 47. Rd6 {[%clk 0:00:06]}  Rb8 {[%clk 0:00:01]} 48. f3 {[%clk 0:00:06]}  Bb7 {[%clk 0:00:01]} 49. Rxb6 {[%clk 0:00:05]} 1-0


[Site "https://www.chess.com"]

[Event "Titled Tuesday Blitz February 14 Early 2023"]
[White "Hansen, Sune Berg"]
[Black "Kokoszczynski, Jan"]
[WhiteFideId "1400266"]
[BlackFideId "1174460"]
[WhiteElo "2517"]
[BlackElo "2247"]
[Result "1-0"]
[Round "09"]
[TimeControl "180+2"]
[Date "2023.02.14"]
[WhiteClock "0:00:19"]
[BlackClock "0:00:03"]

1. e4 {[%clk 0:03:00]}  c6 {[%clk 0:03:00]} 2. d4 {[%clk 0:03:00]}  d5 {[%clk 0:03:00]} 3. e5 {[%clk 0:03:00]}  Bf5 {[%clk 0:02:59]} 4. Nd2 {[%clk 0:03:00]}  e6 {[%clk 0:02:59]} 5. Nb3 {[%clk 0:03:00]}  c5 {[%clk 0:02:55]} 6. Nxc5 {[%clk 0:02:58]}  Bxc5 {[%clk 0:02:55]} 7. dxc5 {[%clk 0:02:58]}  Qa5+ {[%clk 0:02:55]} 8. c3 {[%clk 0:02:58]}  Qxc5 {[%clk 0:02:55]} 9. Qa4+ {[%clk 0:02:56]}  Nd7 {[%clk 0:02:27]} 10. Nf3 {[%clk 0:02:55]}  Ne7 {[%clk 0:02:26]} 11. Nd4 {[%clk 0:02:49]}  a6 {[%clk 0:02:13]} 12. Bf4 {[%clk 0:02:21]}  Rd8 {[%clk 0:01:37]} 13. Be2 {[%clk 0:02:05]}  O-O {[%clk 0:01:34]} 14. O-O {[%clk 0:01:56]}  Be4 {[%clk 0:01:19]} 15. h4 {[%clk 0:01:39]}  h6 {[%clk 0:01:13]} 16. h5 {[%clk 0:01:36]}  Qc7 {[%clk 0:00:59]} 17. Rfe1 {[%clk 0:01:26]}  Nc6 {[%clk 0:00:48]} 18. Nxc6 {[%clk 0:01:13]}  bxc6 {[%clk 0:00:45]} 19. Bf1 {[%clk 0:00:43]}  Rb8 {[%clk 0:00:43]} 20. b3 {[%clk 0:00:39]}  Bf5 {[%clk 0:00:35]} 21. Re3 {[%clk 0:00:36]}  a5 {[%clk 0:00:24]} 22. Rae1 {[%clk 0:00:34]}  Nc5 {[%clk 0:00:20]} 23. Qd4 {[%clk 0:00:33]}  Ne4 {[%clk 0:00:12]} 24. f3 {[%clk 0:00:32]}  c5 {[%clk 0:00:13]} 25. Qd1 {[%clk 0:00:31]}  Ng5 {[%clk 0:00:11]} 26. Qd2 {[%clk 0:00:23]}  Rfd8 {[%clk 0:00:10]} 27. R3e2 {[%clk 0:00:21]}  d4 {[%clk 0:00:06]} 28. Bxg5 {[%clk 0:00:20]}  hxg5 {[%clk 0:00:07]} 29. c4 {[%clk 0:00:19]}  Qe7 {[%clk 0:00:06]} 30. g4 {[%clk 0:00:17]}  Bh7 {[%clk 0:00:06]} 31. Rh2 {[%clk 0:00:18]}  d3 {[%clk 0:00:05]} 32. h6 {[%clk 0:00:19]}  Rdc8 {[%clk 0:00:04]} 33. hxg7 {[%clk 0:00:18]}  Rd8 {[%clk 0:00:04]} 34. Rh5 {[%clk 0:00:19]}  Rd4 {[%clk 0:00:03]} 35. Qh2 {[%clk 0:00:19]} 1-0


[Site "https://www.chess.com"]

[Event "Titled Tuesday Blitz February 14 Early 2023"]
[White "Klabis, Rokas"]
[Black "Girsh, Daniel"]
[WhiteFideId "12805246"]
[BlackFideId "30949190"]
[WhiteElo "2415"]
[BlackElo "2123"]
[Result "1-0"]
[Round "09"]
[TimeControl "180+2"]
[Date "2023.02.14"]
[WhiteClock "0:00:21"]
[BlackClock "0:00:31"]

1. e4 {[%clk 0:03:00]}  c5 {[%clk 0:03:00]} 2. Nf3 {[%clk 0:03:00]}  d6 {[%clk 0:02:59]} 3. d4 {[%clk 0:03:00]}  cxd4 {[%clk 0:03:00]} 4. Nxd4 {[%clk 0:03:00]}  Nf6 {[%clk 0:03:00]} 5. Nc3 {[%clk 0:03:01]}  a6 {[%clk 0:03:01]} 6. h3 {[%clk 0:03:01]}  e5 {[%clk 0:03:01]} 7. Nde2 {[%clk 0:03:01]}  Nc6 {[%clk 0:03:00]} 8. g4 {[%clk 0:03:02]}  Be6 {[%clk 0:03:01]} 9. Bg2 {[%clk 0:03:02]}  Be7 {[%clk 0:03:01]} 10. O-O {[%clk 0:03:01]}  O-O {[%clk 0:03:02]} 11. Ng3 {[%clk 0:03:01]}  b5 {[%clk 0:03:00]} 12. a3 {[%clk 0:03:00]}  b4 {[%clk 0:02:58]} 13. axb4 {[%clk 0:02:59]}  Nxb4 {[%clk 0:02:59]} 14. g5 {[%clk 0:02:38]}  Nd7 {[%clk 0:02:58]} 15. f4 {[%clk 0:02:38]}  exf4 {[%clk 0:02:58]} 16. Bxf4 {[%clk 0:02:38]}  Ne5 {[%clk 0:02:59]} 17. h4 {[%clk 0:02:26]}  Qb6+ {[%clk 0:02:56]} 18. Kh1 {[%clk 0:02:26]}  Rac8 {[%clk 0:02:39]} 19. Nf5 {[%clk 0:02:25]}  Rfe8 {[%clk 0:02:26]} 20. Nxe7+ {[%clk 0:02:16]}  Rxe7 {[%clk 0:02:25]} 21. Na4 {[%clk 0:01:06]}  Qc6 {[%clk 0:02:21]} 22. c3 {[%clk 0:01:07]}  Nbd3 {[%clk 0:02:19]} 23. Bg3 {[%clk 0:01:06]}  Bc4 {[%clk 0:02:14]} 24. b3 {[%clk 0:01:01]}  Bb5 {[%clk 0:02:14]} 25. c4 {[%clk 0:01:01]}  Bxa4 {[%clk 0:02:07]} 26. Bxe5 {[%clk 0:01:01]}  Nxe5 {[%clk 0:01:48]} 27. Rxa4 {[%clk 0:01:01]}  Rb7 {[%clk 0:01:34]} 28. Qc2 {[%clk 0:00:53]}  Rcb8 {[%clk 0:01:33]} 29. Ra3 {[%clk 0:00:48]}  Qc5 {[%clk 0:01:32]} 30. Rxa6 {[%clk 0:00:43]}  g6 {[%clk 0:01:24]} 31. Qd2 {[%clk 0:00:30]}  Rxb3 {[%clk 0:01:22]} 32. Rxd6 {[%clk 0:00:30]}  Nxc4 {[%clk 0:01:09]} 33. Rd8+ {[%clk 0:00:30]}  Kg7 {[%clk 0:01:04]} 34. Rxf7+ {[%clk 0:00:19]}  Kxf7 {[%clk 0:01:04]} 35. Qf4+ {[%clk 0:00:19]}  Qf5 {[%clk 0:00:44]} 36. Qc7+ {[%clk 0:00:19]}  Ke6 {[%clk 0:00:38]} 37. Qxc4+ {[%clk 0:00:19]}  Ke5 {[%clk 0:00:33]} 38. Rd5+ {[%clk 0:00:17]}  Kf4 {[%clk 0:00:34]} 39. exf5+ {[%clk 0:00:17]}  Kg3 {[%clk 0:00:32]} 40. Rd3+ {[%clk 0:00:18]}  Rxd3 {[%clk 0:00:31]} 41. Qxd3+ {[%clk 0:00:18]}  Kf4 {[%clk 0:00:32]} 42. fxg6 {[%clk 0:00:18]}  hxg6 {[%clk 0:00:30]} 43. Qxg6 {[%clk 0:00:19]}  Kg3 {[%clk 0:00:31]} 44. Qd3+ {[%clk 0:00:19]}  Kxh4 {[%clk 0:00:31]} 45. g6 {[%clk 0:00:19]}  Rd8 {[%clk 0:00:27]} 46. Qxd8+ {[%clk 0:00:19]}  Kg3 {[%clk 0:00:28]} 47. Qg5+ {[%clk 0:00:19]}  Kf2 {[%clk 0:00:28]} 48. g7 {[%clk 0:00:19]}  Ke1 {[%clk 0:00:29]} 49. g8=Q {[%clk 0:00:19]}  Kf2 {[%clk 0:00:29]} 50. Qf7+ {[%clk 0:00:19]}  Ke1 {[%clk 0:00:30]} 51. Qg3+ {[%clk 0:00:19]}  Kd1 {[%clk 0:00:30]} 52. Qf1+ {[%clk 0:00:19]}  Kc2 {[%clk 0:00:30]} 53. Qff2+ {[%clk 0:00:20]}  Kb1 {[%clk 0:00:30]} 54. Qd3+ {[%clk 0:00:20]}  Ka1 {[%clk 0:00:31]} 55. Qdf1# {[%clk 0:00:21]} 1-0


[Site "https://www.chess.com"]

[Event "Titled Tuesday Blitz February 14 Early 2023"]
[White "Kanyamarala, Tarun"]
[Black "Boyer, Mahel"]
[WhiteFideId "45004714"]
[BlackFideId "45102422"]
[WhiteElo "2342"]
[BlackElo "2489"]
[Result "0-1"]
[Round "09"]
[TimeControl "180+2"]
[Date "2023.02.14"]
[WhiteClock "0:00:21"]
[BlackClock "0:00:17"]

1. d4 {[%clk 0:02:50]}  Nf6 {[%clk 0:02:31]} 2. c4 {[%clk 0:02:49]}  c5 {[%clk 0:02:28]} 3. d5 {[%clk 0:02:49]}  b5 {[%clk 0:02:16]} 4. cxb5 {[%clk 0:02:50]}  e6 {[%clk 0:02:15]} 5. Nc3 {[%clk 0:02:49]}  exd5 {[%clk 0:02:15]} 6. Nxd5 {[%clk 0:02:48]}  Bb7 {[%clk 0:02:16]} 7. e4 {[%clk 0:02:38]}  Bxd5 {[%clk 0:02:11]} 8. exd5 {[%clk 0:02:37]}  Bd6 {[%clk 0:02:12]} 9. Be2 {[%clk 0:02:34]}  O-O {[%clk 0:02:12]} 10. Nf3 {[%clk 0:02:33]}  a6 {[%clk 0:02:09]} 11. O-O {[%clk 0:02:30]}  Qb6 {[%clk 0:02:10]} 12. bxa6 {[%clk 0:02:24]}  Nxa6 {[%clk 0:02:11]} 13. b3 {[%clk 0:02:24]}  Nb4 {[%clk 0:02:08]} 14. Bb2 {[%clk 0:02:18]}  Nbxd5 {[%clk 0:02:07]} 15. Bc4 {[%clk 0:02:15]}  Qc6 {[%clk 0:02:07]} 16. Ng5 {[%clk 0:02:03]}  Nf4 {[%clk 0:02:01]} 17. Qf3 {[%clk 0:01:47]}  Qxf3 {[%clk 0:01:51]} 18. Nxf3 {[%clk 0:01:46]}  Be7 {[%clk 0:01:41]} 19. Rfe1 {[%clk 0:01:34]}  Ne6 {[%clk 0:01:31]} 20. Ne5 {[%clk 0:01:32]}  d5 {[%clk 0:01:25]} 21. Nc6 {[%clk 0:01:30]}  Bd6 {[%clk 0:01:13]} 22. Bxf6 {[%clk 0:01:24]}  dxc4 {[%clk 0:01:10]} 23. Be7 {[%clk 0:01:25]}  Rfc8 {[%clk 0:00:57]} 24. Bxd6 {[%clk 0:01:21]}  Rxc6 {[%clk 0:00:52]} 25. Be5 {[%clk 0:01:19]}  f6 {[%clk 0:00:44]} 26. Bc3 {[%clk 0:01:18]}  cxb3 {[%clk 0:00:38]} 27. axb3 {[%clk 0:01:19]}  Rxa1 {[%clk 0:00:38]} 28. Rxa1 {[%clk 0:01:17]}  Rb6 {[%clk 0:00:39]} 29. Ra3 {[%clk 0:01:08]}  c4 {[%clk 0:00:38]} 30. b4 {[%clk 0:01:06]}  Nc7 {[%clk 0:00:37]} 31. g3 {[%clk 0:00:48]}  Nd5 {[%clk 0:00:32]} 32. Bd2 {[%clk 0:00:37]}  Nxb4 {[%clk 0:00:18]} 33. Ra8+ {[%clk 0:00:32]}  Kf7 {[%clk 0:00:18]} 34. Bxb4 {[%clk 0:00:32]}  Rxb4 {[%clk 0:00:19]} 35. Rc8 {[%clk 0:00:32]}  Ke6 {[%clk 0:00:18]} 36. Kg2 {[%clk 0:00:29]}  Kd5 {[%clk 0:00:17]} 37. Kf3 {[%clk 0:00:29]}  Rb5 {[%clk 0:00:16]} 38. Ke3 {[%clk 0:00:28]}  Rc5 {[%clk 0:00:17]} 39. Rd8+ {[%clk 0:00:26]}  Ke5 {[%clk 0:00:17]} 40. f4+ {[%clk 0:00:26]}  Kf5 {[%clk 0:00:17]} 41. Kd4 {[%clk 0:00:21]}  c3 {[%clk 0:00:17]} 0-1


[Site "https://www.chess.com"]